Cogmind - Beta 13 @@@ ROGUE MODE // 2024.07.27 @ 20:23:23 Player: Sionnis Result: Destroyed by H-55 Commando with Gauss Rifle Performance ------------- Evolutions (1) 500 Regions Visited (6) 1200 Robots Destroyed (72) 360 Value Destroyed (1454) 1454 Prototype IDs (37) 740 Alien Tech Used (0) 0 Bonus (314) 314 TOTAL SCORE: 4568 Bonus ------- Follower Combat Kills 56 Aligned with FarCom 300 Friendly Fire -42 Cogmind --------- Core Integrity 0/400 Matter 57/300 Energy 100/100 System Corruption 1% Temperature Cool (0) Movement Flying (449) Ox6 Location -8/Mines Parts ------- > --- POWER (1) -------- (None) > --- PROPULSION (3) --- Improved VTOL Module Improved VTOL Module Improved VTOL Module > --- UTILITY (3) ------ Huge Storage Unit Improved Targeting Computer Improved Utility Shielding > --- WEAPON (2) ------- AD-0RF's Magmablaster > --- INVENTORY (25) --- Light Particle Reactor VTOL Module VTOL Module Medium Storage Unit Experimental Energy Well (11) Experimental Sensor Array Signal Interpreter 0b10 Alert Chip Improved Utility Shielding Authchip [Armor] Heavy Assault Rifle Heavy Assault Rifle Improved Light Cannon Grenade Launcher Datajack Plasma Cutter Peak State ------------ > --- POWER ------------ Light Particle Reactor > --- PROPULSION ------- Improved VTOL Module Improved VTOL Module Improved VTOL Module > --- UTILITY ---------- Huge Storage Unit Improved Targeting Computer Improved Utility Shielding > --- WEAPON ----------- AD-0RF's Magmablaster Makeshift Sword > --- INVENTORY -------- VTOL Module VTOL Module Medium Storage Unit Experimental Energy Well Experimental Sensor Array Signal Interpreter 0b10 Alert Chip Improved Utility Shielding Authchip [Armor] Heavy Assault Rifle Heavy Assault Rifle Improved Light Cannon Grenade Launcher Datajack Plasma Cutter [Rating: 43] Favorites ----------- Power Cooled Ion Engine Engine Cooled Ion Engine Reactor Light Particle Reactor Propulsion Light Treads Treads Light Treads Wheel Wheel Flight Unit Improved VTOL Module Utility Huge Storage Unit Device Seismic Detector Storage Huge Storage Unit Processor Improved Targeting Computer Hackware Hacking Suite Protection Light Armor Plating Weapon Improved Light Cannon Energy Cannon Advanced Beam Cannon Ballistic Gun Heavy Assault Rifle Ballistic Cannon Improved Light Cannon Launcher Rocket Launcher Special Weapon AD-0RF's Magmablaster Slashing Weapon Makeshift Sword Special Melee Weapon Datajack Build | -11 -10 -10 -9 -9 -9 -8 ------- Run | Yrd Mat Min Mat Min Exi Min Slots Evolved 2 | . . . 2 . . . Power . | . . . . . . . Propulsion 1 | . . . 1 . . . Utility 1 | . . . 1 . . . Weapon . | . . . . . . . Parts Attached 86 | 7 9 16 31 6 6 11 Power 9 | 1 1 3 2 . 1 1 Engine 8 | 1 1 3 2 . 1 . Core . | . . . . . . . Reactor 1 | . . . . . . 1 Propulsion 26 | 2 . 3 13 1 4 3 Treads 15 | 2 . . 9 1 3 . Leg . | . . . . . . . Wheel 6 | . . 3 2 . 1 . Hover . | . . . . . . . Flight 5 | . . . 2 . . 3 Utility 22 | 2 5 4 8 2 1 . Device 3 | 1 . . 1 1 . . Storage 7 | 1 4 1 1 . . . Processor 2 | . . . 2 . . . Hackware 1 | . . . 1 . . . Protection 9 | . 1 3 3 1 1 . Artifact . | . . . . . . . Weapon 29 | 2 3 6 8 3 . 7 Energy Gun . | . . . . . . . Energy Cannon 2 | . 1 . 1 . . . Ballistic Gun 9 | 2 . 2 . 2 . 3 Ballistic Cannon 11 | . 2 2 6 . . 1 Launcher 3 | . . 2 1 . . . Special Weapon 1 | . . . . . . 1 Impact Weapon . | . . . . . . . Slashing Weapon 2 | . . . . 1 . 1 Piercing Weapon . | . . . . . . . Special Melee Weapon 1 | . . . . . . 1 Unidentified Prototypes 5 | . . . 4 1 . . Parts Lost 26 | . . 12 1 1 7 5 Power 3 | . . 1 . . 1 1 Propulsion 10 | . . 3 . . 6 1 Utility 6 | . . 4 1 1 . . Weapon 7 | . . 4 . . . 3 Highest Loss Streak 10 | . . 10 1 1 7 4 To Critical Strikes 7 | . . . . . 7 . Average Slot Usage (%) 96 | . 99 98 99 94 88 73 Engine 11 | . 14 13 11 11 10 4 Treads 28 | . 28 22 29 33 32 . Wheel 2 | . . 5 3 . . 7 Storage 12 | . 14 15 11 11 11 11 Processor 4 | . . . 3 11 11 11 Hackware 2 | . . . 7 . . . Protection 8 | . 9 12 9 5 . 11 Energy Cannon 7 | . 7 12 8 7 . . Ballistic Gun 6 | . 9 3 . 7 22 16 Ballistic Cannon 9 | . 10 12 12 6 . . Naked Turns . | . . . . . . . Heaviest Build 99 | 15 94 95 99 99 97 97 Greatest Support 63 | 40 40 40 63 63 63 15 Greatest Overweight (x) 28 | . 2 5 9 1 8 28 Average Overweight (x) 1 | . . 2 2 1 1 8 Largest Inventory Capacity 25 | 8 25 25 25 25 25 25 Average Capacity 23 | 7 17 25 25 25 25 25 Most Carried 25 | 3 21 24 25 25 25 19 Average Carried 21 | 2 13 20 22 24 24 17 Final Capacity 25 | 8 25 25 25 25 25 25 Final Carried 25 | 3 21 14 25 25 19 16 Class Distribution -------------------- 62% | Mutant 37% | Scavenger-Mutant Dominant Class ---------------- Mutant | -10/Materials Mutant | -10/Mines Scavenger-Mutant | -9/Materials Mutant | -9/Mines Scavenger-Mutant | -9/Exiles Mutant | -8/Mines Resources | -11 -10 -10 -9 -9 -9 -8 ----------- Run | Yrd Mat Min Mat Min Exi Min Matter Collected 1909 | 214 277 342 698 275 . 103 Remotely . | . . . . . . . Salvage Created 1641 | 26 312 281 620 299 . 103 Parts 129 | 4 26 29 51 15 . 4 Haulers Intercepted 1 | . . . 1 . . . Recyclers Shooed 1 | . . . . . . 1 Parts Field Recycled . | . . . . . . . Retrieved Matter . | . . . . . . . Parts Self-Destructed . | . . . . . . . Prevented . | . . . . . . . Kills | -11 -10 -10 -9 -9 -9 -8 ------- Run | Yrd Mat Min Mat Min Exi Min Combat Hostiles Destroyed 74 | . 10 26 25 12 . 1 Melee 1 | . . . . . . 1 Guns 6 | . 4 1 1 . . . Cannons 49 | . 6 12 20 11 . . AOE 17 | . . 13 4 . . . Classes Destroyed 12 | 1 4 4 2 1 . . Worker 1 | . . 1 . . . . Builder 2 | . . 1 1 . . . Tunneler 2 | 1 . 1 . . . . Hauler 1 | . . . 1 . . . Operator 3 | . 2 . 1 . . . Watcher 4 | . 1 . 3 . . . Swarmer 35 | . 5 9 14 7 . . Grunt 16 | . 5 1 6 4 . . Brawler 1 | . . . . 1 . . Sentry 5 | . . . 5 . . . Demolisher 1 | . . 1 . . . . Assembled 15 | . . 15 . . . . Best Kill Streak 10 | 1 5 10 5 4 . 1 Combat Bots Only 10 | . 3 10 5 4 . 1 Max Kills in Single Turn 3 | 1 1 3 2 1 . 1 Gunslinging . | . . . . . . . Exploded 3 | . . 3 2 . . . Melee 1 | . . . . . . 1 Uniques/NPCs Destroyed 1 | . . . . . . 1 AD-0RF (-8/Mines) Combat | -11 -10 -10 -9 -9 -9 -8 -------- Run | Yrd Mat Min Mat Min Exi Min Hostile Shots Fired 421 | . 47 118 89 46 54 67 Missed 99 | . 17 26 31 10 13 2 Damage Taken 4218 | . 323 1425 621 300 673 876 Core 655 | . 30 219 77 10 67 252 Absorbed by Shields 12 | . . . 12 . . . Redirected to Shielding 43 | . . . . . 12 31 Regen/Repaired (Parts) 105 | . . . 105 . . . Core Remaining (%) 50 | 100 . . . . . . Volleys Fired 207 | 5 35 53 60 20 22 12 Largest 2 | 2 2 2 2 2 2 2 Hottest 107 | 40 95 95 107 107 46 46 Shots Fired 397 | 10 70 97 115 41 45 19 Gun 129 | 10 45 8 2 . 45 19 Cannon 258 | . 25 82 110 41 . . Launcher 10 | . . 7 3 . . . Special . | . . . . . . . Kinetic 286 | 10 66 58 68 20 45 19 Thermal 101 | . 4 32 44 21 . . Explosive 10 | . . 7 3 . . . Electromagnetic . | . . . . . . . Robot Hit Streak 9 | 3 6 6 9 4 6 5 Robot Miss Streak 6 | 2 3 4 6 3 2 4 Penetration Max . | . . . . . . . Secondary Targets . | . . . . . . . Shots Hit Robots 224 | 6 39 47 64 18 34 16 Core Hits 113 | 1 17 39 33 11 5 7 Critical Kills 1 | . . . . 1 . . Critical Parts Destroyed . | . . . . . . . Critical Strikes 5 | . . . 3 2 . . Meltdown 1 | . . . . 1 . . Blast 4 | . . . 3 1 . . Melee Attacks 6 | . . . . 1 . 5 Impact . | . . . . . . . Slashing 5 | . . . . 1 . 4 Piercing . | . . . . . . . Sneak Attacks . | . . . . . . . Combat Hostiles . | . . . . . . . Follow-up Attacks . | . . . . . . . Damage Inflicted 5096 | 78 569 1560 1714 377 497 301 Guns 1116 | 78 282 77 24 . 497 158 Cannons 2806 | . 287 735 1407 377 . . Explosions 1030 | . . 748 282 . . . Melee 143 | . . . . . . 143 Ramming 1 | . . . 1 . . . Kinetic 2717 | 78 514 451 887 132 497 158 Thermal 1205 | . 55 361 544 245 . . Explosive 1030 | . . 748 282 . . . Electromagnetic . | . . . . . . . Impact . | . . . . . . . Slashing 143 | . . . . . . 143 Piercing . | . . . . . . . Highest Corruption 1 | . . . 1 1 1 1 Average Corruption 1 | . . . 1 1 1 1 Corruption Purged . | . . . . . . . Corruption Blocked . | . . . . . . . Effects 38 | . . . 13 20 4 1 Message Errors 10 | . . . 2 6 1 1 Matter Fused 12 | . . . 6 4 2 . Heat Flow Errors 3 | . . . 2 1 . . Energy Discharges 4 | . . . 3 1 . . Data Loss (minor) 5 | . . . . 5 . . Data Loss (major) 2 | . . . . 2 . . Misfires 2 | . . . . 1 1 . Overload Shots . | . . . . . . . Overflow Damage 99 | . . 29 64 6 . . Projectiles 82 | . . 23 53 6 . . Explosions 17 | . . 6 11 . . . Melee . | . . . . . . . Knockbacks 10 | . 2 4 2 2 . . Impact . | . . . . . . . Kinetic 10 | . 2 4 2 2 . . Secondary . | . . . . . . . Self-Inflicted Damage 212 | . . 158 54 . . . Shots 6 | . . 4 2 . . . Rammed 1 | . . . 1 . . . Targets Rammed 1 | . . . 1 . . . Kicked . | . . . . . . . Crushed . | . . . . . . . Highest Temperature 378 | . 132 162 318 349 . 378 Average Temperature 99 | . 65 69 89 119 . 208 Received Heat Transfer 1469 | . 72 90 129 18 . 1160 Effects 7 | . . . . 1 . 6 Energy Bleed 1 | . . . . 1 . . Interference 6 | . . . . . . 6 Siege Activations . | . . . . . . . Robots Corrupted . | . . . . . . . Combat Hostiles . | . . . . . . . Parts Fried . | . . . . . . . Impact Corruptions . | . . . . . . . Robots Melted 1 | . . . . 1 . . Combat Hostiles 1 | . . . . 1 . . Parts Melted 2 | . . 1 1 . . . Heat Transferred 2183 | . 111 740 925 407 . . Parts Sabotaged . | . . . . . . . Parts Stolen . | . . . . . . . Parts Stripped . | . . . . . . . Power Chain Reactions . | . . . . . . . Alert | -11 -10 -10 -9 -9 -9 -8 ------- Run | Yrd Mat Min Mat Min Exi Min Peak Influence 297 | 5 203 118 297 259 . . Initial 103 | . 3 18 . 103 . . Average 93 | 1 92 28 132 111 . . Maximum Alert Level 1 | . 1 . 1 1 . . Low Security (%) 85 | 100 99 100 71 81 . 100 Level 1 14 | . . . 28 18 . . Level 2 . | . . . . . . . Level 3 . | . . . . . . . Level 4 . | . . . . . . . Level 5 . | . . . . . . . High Security . | . . . . . . . Max Security . | . . . . . . . Squads Dispatched 4 | . 2 . 1 1 . . Investigation 3 | . 1 . 1 1 . . Extermination . | . . . . . . . Reinforcement 1 | . 1 . . . . . Assault . | . . . . . . . Garrison . | . . . . . . . Intercept . | . . . . . . . Searches Triggered . | . . . . . . . Construction Impeded . | . . . . . . . Haulers Reinforced . | . . . . . . . Active Scanning Responses . | . . . . . . . Cargo Convoy Interrupts . | . . . . . . . Stealth | -11 -10 -10 -9 -9 -9 -8 --------- Run | Yrd Mat Min Mat Min Exi Min Distress Signals 1 | . . . 1 . . . Communications Jammed . | . . . . . . . Distress Signals . | . . . . . . . Times Spotted 97 | . 17 29 34 14 1 2 Peak Tracking Total 6 | . 5 6 5 4 2 1 Tactical Retreats 4 | . . 2 1 1 . . Traps | -11 -10 -10 -9 -9 -9 -8 ------- Run | Yrd Mat Min Mat Min Exi Min Traps Triggered 1 | . 1 . . . . . Indirectly . | . . . . . . . Trap Hack Attempts . | . . . . . . . Triggered . | . . . . . . . Disarmed . | . . . . . . . Reprogrammed . | . . . . . . . Reused . | . . . . . . . Traps Extracted . | . . . . . . . Installed . | . . . . . . . Triggered . | . . . . . . . Machines | -11 -10 -10 -9 -9 -9 -8 ---------- Run | Yrd Mat Min Mat Min Exi Min Machines Disabled 8 | . 1 1 4 2 . . Max in Single Turn 1 | . 1 1 1 1 . . Machines Repaired . | . . . . . . . Machines Dismantled . | . . . . . . . Machines Sabotaged . | . . . . . . . Overloaded Fab Kills . | . . . . . . . Hacking | -11 -10 -10 -9 -9 -9 -8 --------- Run | Yrd Mat Min Mat Min Exi Min Machines Accessed 20 | . 6 . 12 1 1 . Terminals 12 | . 4 . 7 1 . . Fabricators . | . . . . . . . Repair Stations 2 | . . . 2 . . . Recycling Units 4 | . 2 . 2 . . . Scanalyzers 1 | . . . 1 . . . Garrison Access . | . . . . . . . Total Hacks 63 | . 21 . 35 6 1 . Successful 33 | . 10 . 20 2 1 . Failed 28 | . 10 . 14 4 . . Catastrophic 4 | . 1 . 2 1 . . Database Lockouts 2 | . 1 . 1 . . . Manual 40 | . 16 . 17 6 1 . Terminals 44 | . 15 . 23 6 . . Fabricators . | . . . . . . . Repair Stations 6 | . . . 6 . . . Recycling Units 8 | . 6 . 2 . . . Scanalyzers 4 | . . . 4 . . . Garrison Access . | . . . . . . . Terminal Hacks 13 | . 4 . 6 2 1 . Part Schematic 2 | . . . . 2 . . Robot Analysis 5 | . 3 . 2 . . . Prototype ID Bank 1 | . . . 1 . . . Terminal Index 1 | . . . 1 . . . Unreport Threat 1 | . . . 1 . . . Hauler Manifests 2 | . 1 . 1 . . . Derelict Proto ID Bank 1 | . . . . . 1 . Fabricator Hacks . | . . . . . . . Repair Station Hacks 5 | . . . 5 . . . Scan Component 3 | . . . 3 . . . Repair 2 | . . . 2 . . . Recycling Unit Hacks 4 | . 2 . 2 . . . Retrieve Components 4 | . 2 . 2 . . . Scanalyzer 4 | . . . 4 . . . Insert Component 2 | . . . 2 . . . Analyze 2 | . . . 2 . . . Garrison Access Hacks . | . . . . . . . Unauthorized Hacks 7 | . 4 . 3 . . . Terminals 5 | . 2 . 3 . . . Botnet 4 | . 2 . 2 . . . Operators 1 | . . . 1 . . . Fabricators . | . . . . . . . Repair Stations . | . . . . . . . Recycling Units 2 | . 2 . . . . . Reject 1 | . 1 . . . . . Tunnel 1 | . 1 . . . . . Scanalyzers . | . . . . . . . Garrison Access . | . . . . . . . Data Cores Recovered 2 | . 1 . 1 . . . Used . | . . . . . . . Hacking Detections 15 | . 4 . 10 1 . . Full Trace Events 2 | . . . 1 1 . . Feedback Events 1 | . . . 1 . . . Corruption 1 | . . . 1 . . . Feedback Blocked . | . . . . . . . Robot Schematics Acquired . | . . . . . . . Robots Built . | . . . . . . . Authchips . | . . . . . . . Time . | . . . . . . . Total Robot Build Rating . | . . . . . . . Part Schematics Acquired 4 | . . . 2 2 . . Parts Built . | . . . . . . . Authchips . | . . . . . . . Time . | . . . . . . . Total Part Build Rating . | . . . . . . . Parts Repaired 2 | . . . 2 . . . Time 26 | . . . 26 . . . Parts Recycled . | . . . . . . . Recycled Matter . | . . . . . . . Retrieved Matter . | . . . . . . . Retrieved Components 15 | . 3 . 12 . . . Parts Scanalyzed 2 | . . . 2 . . . Part Schematics Acquired 2 | . . . 2 . . . Parts Damaged . | . . . . . . . Bothacking | -11 -10 -10 -9 -9 -9 -8 ------------ Run | Yrd Mat Min Mat Min Exi Min Used RIF Installer . | . . . . . . . Robots Hacked 1 | . . . . . . 1 Non-combat . | . . . . . . . Combat 1 | . . . . . . 1 Robot Hacks Applied 1 | . . . . . . 1 parse_system 1 | . . . . . . 1 Relay Couplers Released . | . . . . . . . Fabnet Peak Effective % . | . . . . . . . Robots Rewired . | . . . . . . . Allies Hacked . | . . . . . . . Hacks Repelled . | . . . . . . . Allies | -11 -10 -10 -9 -9 -9 -8 -------- Run | Yrd Mat Min Mat Min Exi Min Total Allies 3 | . . 1 . 2 . . Largest Group 2 | . . 1 . 2 1 . Highest-Rated Group 38 | . . 31 . 38 7 . Highest-Rated Ally 31 | . . 31 . 31 7 . Total Orders . | . . . . . . . Ally Attacks 14 | . . 6 . 8 . . Total Damage 209 | . . 63 . 146 . . Kills 5 | . . 2 . 3 . . Allies Corrupted . | . . . . . . . Allies Melted . | . . . . . . . Intel | -11 -10 -10 -9 -9 -9 -8 ------- Run | Yrd Mat Min Mat Min Exi Min Robot Analysis Total 5 | . 3 . 2 . . . Derelict Logs Recovered 3 | . . 1 . 2 . . Drone Launches . | . . . . . . . Drone Recoveries . | . . . . . . . Exploration | -11 -10 -10 -9 -9 -9 -8 ------------- Run | Yrd Mat Min Mat Min Exi Min Turns Passed 7791 | 113 1106 1572 2335 1923 607 135 Spaces Moved 2937 | 55 470 535 877 754 223 23 Core 3 | 2 . . . . . 1 Treads 2471 | 53 470 327 645 754 222 . Legs . | . . . . . . . Wheels 459 | . . 208 232 . 1 18 Hover . | . . . . . . . Flight 4 | . . . . . . 4 Fastest Speed 50 | 50 160 140 125 240 210 210 Average Speed 231 | 156 200 255 226 240 239 302 Slowest Speed 1450 | 160 320 320 320 240 240 1450 Overloaded Moves . | . . . . . . . Propulsion Burnouts . | . . . . . . . Robots Hopped . | . . . . . . . Cave-ins Triggered . | . . . . . . . Exploration Rate (%) 61 | 4 81 97 75 100 61 11 Regions Visited 6 Branch Regions 4 Pre-discovered Areas 2 | . 1 . . 1 . . Known Exits Taken . | . . . . . . . Unknown Exits Taken 6 | 1 1 1 1 1 1 . Scrap Searched 4 | . . 1 . 3 . . Spaces Dug 20 | . . 12 7 1 . . Terrain Destroyed 52 | . . 33 17 2 . . Melee 1 | . . . . 1 . . Projectile 4 | . . 2 1 1 . . AOE 47 | . . 31 16 . . . Terrain Rammed . | . . . . . . . Walls Destroyed . | . . . . . . . Machines Disabled . | . . . . . . . Actions | -11 -10 -10 -9 -9 -9 -8 --------- Run | Yrd Mat Min Mat Min Exi Min Total 3535 | 69 565 640 1117 827 252 65 Wait 191 | . 27 31 85 37 . 11 Move 2931 | 54 469 534 876 753 222 23 Hop . | . . . . . . . Pick Up 61 | 3 18 5 28 5 1 1 Fast Attach 27 | 7 3 1 14 . . 2 Attach 26 | . . 12 3 . 6 5 Detach 7 | . 1 . 5 . . 1 Swap 33 | . 6 3 14 6 . 4 Drop 45 | . 6 1 31 5 1 1 Fire 207 | 5 35 53 60 20 22 12 Melee 6 | . . . . 1 . 5 Ram 1 | . . . 1 . . . Kick . | . . . . . . . Crush . | . . . . . . . Escape Stasis . | . . . . . . . Rewire . | . . . . . . . Trap . | . . . . . . . Miscellaneous . | . . . . . . . Route ------- -11/Scrapyard -10/Materials (discovered 4 exits: *Mat x3 / [*Min]) -10/Mines (discovered 2 exits: *Mat x2) -9/Materials (discovered 5 exits: [*Mat x2] / *Min x2 / [*Sto]) -9/Mines (discovered 3 exits: [*Mat x2] / *Exi) -9/Exiles (discovered 2 exits: [*Min x2]) -8/Mines (discovered 1 exit: [*Mat]) History --------- Turn | Location | Event 13 | -11/Scrapyard | Discovered new exit (range 15) 114 | -11/Scrapyard | Entered Materials 301 | -10/Materials | Build established: Mutant 405 | -10/Materials | Discovered new exit (range 3) 554 | -10/Materials | Discovered new exit (range 16) 656 | -10/Materials | Central database locked down 786 | -10/Materials | Discovered new exit (range 12) 920 | -10/Materials | Discovered new exit (range 15) 1220 | -10/Materials | Entered Mines 1269 | -10/Mines | Learned Materials trap positions 1346 | -10/Mines | Discovered new exit (range 7) 1742 | -10/Mines | Escorted by a lone wolf Derelict 1869 | -10/Mines | Discovered new exit (range 10) 1889 | -10/Mines | Received a Rocket Launcher from a helpful Derelict 2514 | -10/Mines | Assembled infested the area 2563 | -10/Mines | Core integrity fell below 50% 2564 | -10/Mines | Destroyed 10 combat bots 2575 | -10/Mines | Core integrity fell below 20% 2638 | -10/Mines | Lost 10 parts (1p2n3u4w) 2792 | -10/Mines | Entered Materials 2792 | -9/Materials | Evolved 2 slots: Propulsion x1, Utility x1 2793 | -9/Materials | Loaded intel: 24 trap records 2943 | -9/Materials | Discovered new exit (range 4) 3078 | -9/Materials | Build established: Scavenger-Mutant 3119 | -9/Materials | Repaired Lgt. Armor Plating 3193 | -9/Materials | Repaired Lgt. Treads 3308 | -9/Materials | Discovered new exit (range 14) 3532 | -9/Materials | Discovered new exit (range 15) 3787 | -9/Materials | Central database locked down 4444 | -9/Materials | Discovered new exit (range 3) 4740 | -9/Materials | Build established: Mutant 5074 | -9/Materials | Discovered new exit (range 8) 5127 | -9/Materials | Entered Mines 5160 | -9/Mines | Learned location of Storage (-9) 5247 | -9/Mines | A weapon hastily lodged in a ceiling crevice suddenly fell to the ground 5301 | -9/Mines | Learned 2 Materials zone layouts 5841 | -9/Mines | Found a damaged Exp. Sensor Array with a note attached 5847 | -9/Mines | Found Prototype Device 5848 | -9/Mines | Identified Exp. Sensor Array 6140 | -9/Mines | Discovered new exit (range 8) 6233 | -9/Mines | Deemed a non-threat by the Exiles lab entrance 6236 | -9/Mines | Discovered new exit (range 5) 6428 | -9/Mines | Discovered new exit (range 9) 6666 | -9/Mines | Build established: Scavenger-Mutant 7050 | -9/Mines | Entered Exiles 7050 | -9/Exiles | Accompanied by 1 ally 7082 | -9/Exiles | Discovered new exit (range 15) 7108 | -9/Exiles | Met 8R-AWN 7151 | -9/Exiles | Met EX-HEX 7218 | -9/Exiles | Met EX-BIN 7245 | -9/Exiles | Aligned with FarCom system 7247 | -9/Exiles | Given EX-Vault access code 7326 | -9/Exiles | Opened EX-Vault 7346 | -9/Exiles | Found 0b10 Alert Chip 7398 | -9/Exiles | Warned to stay clear of 0b10 Research branches 7425 | -9/Exiles | Exiles lab attacked by MAIN.C 7563 | -9/Exiles | Discovered new exit (range 11) 7586 | -9/Exiles | Attacked by the Exiles 7657 | -9/Exiles | Left Exiles lab with 0b10 Alert Chip 7657 | -9/Exiles | Entered Mines 7685 | -8/Mines | Lost 7 parts (1p6n) 7705 | -8/Mines | AD-0RF came to Exiles' defense 7722 | -8/Mines | Core integrity fell below 50% 7746 | -8/Mines | Core integrity fell below 20% 7750 | -8/Mines | Destroyed AD-0RF 7752 | -8/Mines | Discovered new exit (range 5) 7773 | -8/Mines | Lost 4 parts (1p1n2w) 7776 | -8/Mines | Found AD-0RF's Magmablaster 7792 | -8/Mines | Destroyed by H-55 Commando with Gauss Rifle Last Messages --------------- Hvy. Assault Rifle temporarily disabled. Imp. Targeting Computer temporarily disabled. Hvy. Assault Rifle temporarily disabled. Overheating: System interference. Hvy. Assault Rifle temporarily disabled. Overheating: System interference. Hvy. Assault Rifle temporarily disabled. Autogun temporarily disabled. Arm. Wheel destroyed. AD-0RF destroyed. Acquired 103 matter. EXIT=FOUND K-01 Serf collects debris. Dropped Autogun. Acquired AD-0RF's Magmablaster. Acquired Exp. Energy Well. Penetrated by Slug. Acquired Lgt. Particle Reactor. Penetrated by Slug. Mak. Sword destroyed. Map ----- +----------------------------------------------------+ | | | | | | | | | | | | | | | | | | | | | | | | | | | ????????????????????????????????????????????? | | ????????????????????????????????????????????? | | ????#####???????????????????????????????????? | | ???## #?????????######???????????????????? | | ???# ##??????? #??????????????????? | | ???# ##?????? ##???????????????? | | ????# ##?????? #???????????????? | | ????# """ #?????? """ #???????????????? | | ????# """ #?????? """ #???????????????? | | ?????# """ ##????? """ #????????????????? | | ?????# ####### #?????????????????? | | ?????# #?????????????????????? | | ?????## @ #?????????????????????? | | ??????##### #### #?????????????????????? | | ??????????## ##??# [#?????????????????????? | | ???????????# #?? #?????????????????????? | | ??????????# ## #????????????????????? | | ??????????# ### #????????????????????? | | ??????????## ##?# < #????????????????????? | | ???????????####??# #????????????????????? | | ?????????????????# ????????????????????? | | ?????????????????# % ????????????????????? | | ?????????????????# ### ???????????????????? | | ?????????????????# ???# ???????????????????? | | ?????????????????# ????##??????????????????? | | ?????????????????# h????????????????????????? | | ?????????????????# ????????????????????????? | | ?????????????????# ????????????????????????? | | ?????????????????# ????????????????????????? | | ?????????????????? ????????????????????????? | | ????????????????????????????????????????????? | | ????????????????????????????????????????????? | | ????????????????????????????????????????????? | | ????????????????????????????????????????????? | | ????????????????????????????????????????????? | | ????????????????????????????????????????????? | | ????????????????????????????????????????????? | +----------------------------------------------------+ Best States ------------- Heat Dissipation 28 Energy Generation 18 Energy Capacity 280 Matter Stores 300 Matter Capacity 400 Sight Range 16 Terrain Scan Density 10 Armor Coverage 150 Utility Shielding 66 Evasion (%) 40 Targeting Accuracy 6 Recoil Reduction 3 Salvage Targeting 1 Offensive Hacking 10 Authchip Count 1 Item Schematics ----------------- Imp. VTOL Module | -9/Materials | Scanalyzed Plasma Cutter | -9/Materials | Scanalyzed Signal Interpreter | -9/Mines | Hacked Datajack | -9/Mines | Hacked Robot Schematics ------------------ None Fabricated ------------ Nothing Alien Tech Used ----------------- None Achievements -------------- None Challenges ------------ None Game ------ Seed ColdEfficiencyArray Manual? 0 Play Time 00:41:45 Cumulative 523.5 hours Start 2024.07.27 @ 19:42:41 End 2024.07.27 @ 20:23:23 Sessions 3 Manual Loads 0 Difficulty Rogue Special Mode None Game No. 271 Rogue 271 Adventurer 0 Explorer 0 Win Type - Total 34 Types 22/2/3/3/1/1/1/1/0 Lore% 91 Gallery% 99 Achievement% 98 Wizard Run 0 Options --------- Layout 1 ASCII 0 Keyboard 0 Movement Numpad Keybinds 0 Fullscreen 1 Font 24/Smallcaps Map View 50x35 Zoom Use 0% Tactical HUD 1 Map Filters NONE Filters NONE Steam 1 RUN: c970f55a-7110-4c3d-b8ed-13e2fb1bf4bf